Cogmind - Beta 13 @@@ ROGUE MODE // 2024.04.21 @ 23:49:59 Player: obieonecnolly Result: Destroyed by G-34 Mercenary with Small Laser Performance ------------- Evolutions (0) 0 Regions Visited (1) 200 Robots Destroyed (21) 105 Value Destroyed (454) 454 Prototype IDs (0) 0 Alien Tech Used (0) 0 Bonus (0) 0 TOTAL SCORE: 759 Bonus ------- None Cogmind --------- Core Integrity 0/250 Matter 218/300 Energy 250/250 System Corruption 0% Temperature Cool (6) Movement Rolling (80) Location -10/Materials Parts ------- > --- POWER (1) -------- Ion Engine > --- PROPULSION (2) --- Wheel Wheel > --- UTILITY (2) ------ Signal Interpreter Propulsion Shielding > --- WEAPON (2) ------- Assault Rifle Light Assault Rifle > --- INVENTORY (5) ---- Hover Unit Hover Unit Medium Matter Pod (100) Visual Processing Unit Peak State ------------ > --- POWER ------------ Ion Engine > --- PROPULSION ------- Aluminum Leg Aluminum Leg > --- UTILITY ---------- Heat Sink Signal Interpreter > --- WEAPON ----------- Assault Rifle Assault Rifle > --- INVENTORY -------- Ion Engine Wheel [Rating: 7] Favorites ----------- Power Ion Engine Engine Ion Engine Propulsion Wheel Leg Aluminum Leg Wheel Wheel Utility Signal Interpreter Device Heat Sink Processor Signal Interpreter Protection Propulsion Shielding Weapon Assault Rifle Ballistic Gun Assault Rifle Build | -11 -10 ------- Run | Yrd Mat Slots Evolved . | . . Power . | . . Propulsion . | . . Utility . | . . Weapon . | . . Parts Attached 17 | 4 13 Power 3 | 1 2 Engine 3 | 1 2 Core . | . . Reactor . | . . Propulsion 6 | 2 4 Treads . | . . Leg 2 | . 2 Wheel 4 | 2 2 Hover . | . . Flight . | . . Utility 4 | . 4 Device 1 | . 1 Storage . | . . Processor 2 | . 2 Hackware . | . . Protection 1 | . 1 Artifact . | . . Weapon 4 | 1 3 Energy Gun . | . . Energy Cannon . | . . Ballistic Gun 4 | 1 3 Ballistic Cannon . | . . Launcher . | . . Special Weapon . | . . Impact Weapon . | . . Slashing Weapon . | . . Piercing Weapon . | . . Special Melee Weapon . | . . Unidentified Prototypes . | . . Parts Lost 4 | . 4 Power 1 | . 1 Propulsion 1 | . 1 Utility . | . . Weapon 2 | . 2 Highest Loss Streak 3 | . 3 To Critical Strikes . | . . Average Slot Usage (%) 87 | . 87 Engine 13 | . 13 Leg 14 | . 14 Wheel 12 | . 12 Device 7 | . 7 Processor 11 | . 11 Ballistic Gun 26 | . 26 Naked Turns . | . . Heaviest Build 10 | 5 10 Greatest Support 20 | 20 20 Greatest Overweight (x) . | . . Average Overweight (x) . | . . Largest Inventory Capacity 5 | 5 5 Average Capacity 5 | 5 5 Most Carried 5 | 5 5 Average Carried 3 | 2 3 Final Capacity 5 | 5 5 Final Carried 4 | 2 4 Class Distribution -------------------- 100% | Mutant Dominant Class ---------------- Mutant | -10/Materials Resources | -11 -10 ----------- Run | Yrd Mat Matter Collected 627 | 252 375 Remotely . | . . Salvage Created 700 | 60 640 Parts 40 | 2 38 Haulers Intercepted . | . . Recyclers Shooed 1 | . 1 Parts Field Recycled . | . . Retrieved Matter . | . . Parts Self-Destructed . | . . Prevented . | . . Kills | -11 -10 ------- Run | Yrd Mat Combat Hostiles Destroyed 14 | 1 13 Guns 14 | 1 13 Classes Destroyed 5 | 2 3 Worker 5 | 1 4 Recycler 1 | . 1 Watcher 1 | . 1 Swarmer 3 | . 3 Grunt 11 | 1 10 Best Kill Streak 8 | 2 8 Combat Bots Only 7 | 1 7 Max Kills in Single Turn 1 | 1 1 Gunslinging . | . . Exploded . | . . Melee . | . . Uniques/NPCs Destroyed . | . . Combat | -11 -10 -------- Run | Yrd Mat Hostile Shots Fired 97 | 3 94 Missed 25 | 2 23 Damage Taken 823 | 10 813 Core 255 | . 255 Absorbed by Shields . | . . Redirected to Shielding 6 | . 6 Core Remaining (%) 100 | 100 . Volleys Fired 63 | 4 59 Largest 2 | 1 2 Hottest 40 | 20 40 Shots Fired 115 | 4 111 Gun 115 | 4 111 Cannon . | . . Launcher . | . . Special . | . . Kinetic 115 | 4 111 Thermal . | . . Explosive . | . . Electromagnetic . | . . Robot Hit Streak 9 | 2 9 Robot Miss Streak 3 | 1 3 Penetration Max . | . . Secondary Targets 5 | . 5 Max Gunslinging Chain 1 | . 1 Shots Hit Robots 68 | 3 65 Core Hits 36 | 3 33 Critical Kills . | . . Critical Parts Destroyed . | . . Critical Strikes . | . . Melee Attacks . | . . Impact . | . . Slashing . | . . Piercing . | . . Sneak Attacks . | . . Combat Hostiles . | . . Follow-up Attacks . | . . Damage Inflicted 915 | 33 882 Guns 915 | 33 882 Cannons . | . . Explosions . | . . Melee . | . . Ramming . | . . Kinetic 915 | 33 882 Thermal . | . . Explosive . | . . Electromagnetic . | . . Impact . | . . Slashing . | . . Piercing . | . . Highest Corruption . | . . Average Corruption . | . . Corruption Purged . | . . Corruption Blocked . | . . Overload Shots . | . . Overflow Damage . | . . Projectiles . | . . Explosions . | . . Melee . | . . Knockbacks . | . . Impact . | . . Kinetic . | . . Secondary . | . . Self-Inflicted Damage . | . . Shots . | . . Rammed . | . . Targets Rammed . | . . Kicked . | . . Crushed . | . . Highest Temperature 9 | . 9 Average Temperature 7 | . 7 Received Heat Transfer 423 | 6 417 Siege Activations . | . . Robots Corrupted . | . . Combat Hostiles . | . . Parts Fried . | . . Impact Corruptions . | . . Robots Melted . | . . Combat Hostiles . | . . Parts Melted . | . . Heat Transferred . | . . Parts Sabotaged . | . . Parts Stolen . | . . Parts Stripped . | . . Power Chain Reactions . | . . Alert | -11 -10 ------- Run | Yrd Mat Peak Influence 182 | 25 182 Initial 16 | . 16 Average 86 | 3 96 Maximum Alert Level . | . . Low Security (%) 100 | 100 100 Level 1 . | . . Level 2 . | . . Level 3 . | . . Level 4 . | . . Level 5 . | . . High Security . | . . Max Security . | . . Squads Dispatched 3 | . 3 Investigation 1 | . 1 Extermination . | . . Reinforcement 2 | . 2 Assault . | . . Garrison . | . . Intercept . | . . Searches Triggered . | . . Construction Impeded . | . . Haulers Reinforced . | . . Active Scanning Responses . | . . Cargo Convoy Interrupts . | . . Stealth | -11 -10 --------- Run | Yrd Mat Distress Signals 3 | . 3 Communications Jammed . | . . Distress Signals . | . . Times Spotted 24 | 1 23 Peak Tracking Total 7 | 1 7 Tactical Retreats . | . . Traps | -11 -10 ------- Run | Yrd Mat Traps Triggered 1 | . 1 Indirectly . | . . Trap Hack Attempts . | . . Triggered . | . . Disarmed . | . . Reprogrammed . | . . Reused . | . . Traps Extracted . | . . Installed . | . . Triggered . | . . Machines | -11 -10 ---------- Run | Yrd Mat Machines Disabled 1 | . 1 Max in Single Turn 1 | . 1 Machines Repaired . | . . Machines Dismantled . | . . Machines Sabotaged . | . . Overloaded Fab Kills . | . . Hacking | -11 -10 --------- Run | Yrd Mat Machines Accessed 3 | . 3 Terminals 2 | . 2 Fabricators . | . . Repair Stations . | . . Recycling Units 1 | . 1 Scanalyzers . | . . Garrison Access . | . . Total Hacks 8 | . 8 Successful 5 | . 5 Failed 3 | . 3 Catastrophic . | . . Database Lockouts . | . . Manual . | . . Terminals 4 | . 4 Fabricators . | . . Repair Stations . | . . Recycling Units 4 | . 4 Scanalyzers . | . . Garrison Access . | . . Terminal Hacks 3 | . 3 Record 2 | . 2 Alert Level 1 | . 1 Fabricator Hacks . | . . Repair Station Hacks . | . . Recycling Unit Hacks 2 | . 2 Report Inventory 1 | . 1 Retrieve Matter 1 | . 1 Scanalyzer . | . . Garrison Access Hacks . | . . Unauthorized Hacks . | . . Terminals . | . . Fabricators . | . . Repair Stations . | . . Recycling Units . | . . Scanalyzers . | . . Garrison Access . | . . Data Cores Recovered . | . . Used . | . . Hacking Detections 3 | . 3 Full Trace Events . | . . Feedback Events . | . . Feedback Blocked . | . . Robot Schematics Acquired . | . . Robots Built . | . . Authchips . | . . Time . | . . Total Robot Build Rating . | . . Part Schematics Acquired . | . . Parts Built . | . . Authchips . | . . Time . | . . Total Part Build Rating . | . . Parts Repaired . | . . Time . | . . Parts Recycled . | . . Recycled Matter . | . . Retrieved Matter . | . . Retrieved Components . | . . Parts Scanalyzed . | . . Part Schematics Acquired . | . . Parts Damaged . | . . Bothacking | -11 -10 ------------ Run | Yrd Mat Used RIF Installer . | . . Robots Hacked . | . . Non-combat . | . . Combat . | . . Robot Hacks Applied . | . . Relay Couplers Released . | . . Fabnet Peak Effective % . | . . Robots Rewired . | . . Allies Hacked . | . . Hacks Repelled . | . . Allies | -11 -10 -------- Run | Yrd Mat Total Allies . | . . Largest Group . | . . Highest-Rated Group . | . . Highest-Rated Ally . | . . Total Orders . | . . Ally Attacks . | . . Total Damage . | . . Kills . | . . Allies Corrupted . | . . Allies Melted . | . . Intel | -11 -10 ------- Run | Yrd Mat Robot Analysis Total . | . . Derelict Logs Recovered . | . . Drone Launches . | . . Drone Recoveries . | . . Exploration | -11 -10 ------------- Run | Yrd Mat Turns Passed 638 | 69 569 Spaces Moved 452 | 78 374 Core 38 | 38 . Treads . | . . Legs 179 | . 179 Wheels 235 | 40 195 Hover . | . . Flight . | . . Fastest Speed 50 | 50 80 Average Speed 93 | 65 99 Slowest Speed 120 | 80 120 Overloaded Moves . | . . Propulsion Burnouts . | . . Robots Hopped . | . . Cave-ins Triggered . | . . Exploration Rate (%) 20 | 5 36 Regions Visited 1 Branch Regions . Pre-discovered Areas . | . . Known Exits Taken . | . . Unknown Exits Taken 1 | 1 . Scrap Searched . | . . Spaces Dug . | . . Terrain Destroyed . | . . Melee . | . . Projectile . | . . AOE . | . . Terrain Rammed . | . . Walls Destroyed . | . . Machines Disabled . | . . Actions | -11 -10 --------- Run | Yrd Mat Total 556 | 91 465 Wait . | . . Move 451 | 77 374 Hop . | . . Pick Up 20 | 6 14 Fast Attach . | . . Attach 15 | 4 11 Detach 1 | . 1 Swap 2 | . 2 Drop 4 | . 4 Fire 63 | 4 59 Melee . | . . Ram . | . . Kick . | . . Crush . | . . Escape Stasis . | . . Rewire . | . . Trap . | . . Miscellaneous . | . . Route ------- -11/Scrapyard -10/Materials History --------- Turn | Location | Event 2 | -11/Scrapyard | Met Revision 17 55 | -11/Scrapyard | Discovered new exit (range 8) 70 | -11/Scrapyard | Entered Materials 301 | -10/Materials | Lost 3 parts (1p1n1w) 305 | -10/Materials | Destroyed 7 combat bots 334 | -10/Materials | Build established: Mutant 540 | -10/Materials | Core integrity fell below 50% 620 | -10/Materials | Core integrity fell below 20% 639 | -10/Materials | Destroyed by G-34 Mercenary with Small Laser Last Messages --------------- 00566_ Acquired Visual Processing Unit. 00568_ K-01 Serf collects debris. 00583_ Dropped Aluminum Leg. 00588_ Acquired Hover Unit. 00590_ Discarded Signal Interpreter. 00595_ Dropped Ion Engine. 00595_ Acquired Signal Interpreter. 00598_ Acquired Propulsion Shielding. 00602_ Connecting with Recycling Unit... 00617_ Dropped Heat Sink. 00621_ S-10 Pest destroyed. 00621_ Switching to secondary target: S-10 Pest. 00623_ K-01 Serf collects debris. 00624_ S-10 Pest destroyed. 00624_ Switching to secondary target: S-10 Pest. 00626_ K-01 Serf collects debris. 00632_ S-10 Pest destroyed. 00632_ Switching to secondary target: G-47 Trooper. 00633_ K-01 Serf collects debris. Map ----- +----------------------------------------------------+ | ?????????????????????????????????????????????????? | | ?????????????????????????????????????????????????? | | ?????????????????????????????????????????????????? | | ?????????????????????????????????????????????????? | | ?????????????????????????????????????????????????? | | ?????????????????????????????????????????????????? | | ?????????????????????????????????????????????????? | | ?????????????????????????? ????????????????????? | | ?????????????????????????# #???????????????????? | | ?????????????????????????# #???????????????????? | | #####????????????????????# #???????????????????? | | ?????????????????????# #???????????????????? | | """ #????????????????????# #???????????????????? | | """ #????????????????????# #???????????????????? | | """ #????????????????????# #???????????????????? | | #????????????????????# #???????????????????? | | #???????######???????# #???????????????????? | | #??????? #???????# #???????????????????? | | #???????? T #???????# gg#???????????????????? | | #####???????? #???????# #???????????????????? | | ?????????????? ????????#%= ###########?????????? | | ?????????????? ??????###=* # #?????????? | | ###############+######## k%=%#== #?????????? | | tu % =w# #?????????? | | * %![ ! r ! #?????????? | | % u % !@ # =! #?????????? | | ######################## # =! " " #?????????? | | ???????????????????????## ## * "Y" #?????????? | | #########???????????????# ## """ #?????????? | | """ #???????????????# ############?????????? | | """"" #???????????????# ???????????????????? | | """"" #???????????????# ??????????????????? | | """"" #???????????????# ?????????????????? | | """ #???????????????# #####????????????????? | | #???????????????+ #????????????????????? | | #???????????????# #????????????????????? | | #???????????????# #????????????????????? | | #??????????????? #????????????????????? | | ###+######?????????????? #????????????????????? | | # #?????????????? #????????????????????? | | # #??????????????# ?????????????????????? | | + #???????????????????????????????????????? | | # # #???????????????????????????????????????? | | # # #???????????????????????????????????????? | | # + #???????????????????????????????????????? | | # # #???????????????????????????????????????? | | + # #???????????????????????????????????????? | | # # #???????????????????????????????????????? | | # ######???????????????????????????????????????? | | # #????????????????????????????????????????????? | +----------------------------------------------------+ Best States ------------- Heat Dissipation 35 Energy Generation 10 Energy Capacity 250 Matter Stores 300 Matter Capacity 300 Sight Range 16 Terrain Scan Density 10 Propulsion Shielding 33 Evasion (%) 55 Item Schematics ----------------- None Robot Schematics ------------------ None Fabricated ------------ Nothing Alien Tech Used ----------------- None Achievements -------------- None Challenges ------------ None Game ------ Seed DecoyPoweredCutter Manual? 0 Play Time 00:15:20 Cumulative 1.5 hours Start 2024.04.21 @ 23:36:22 End 2024.04.21 @ 23:49:59 Sessions 1 Manual Loads 0 Difficulty Rogue Special Mode None Game No. 2 Rogue 2 Adventurer 0 Explorer 0 Win Type - Total 0 Types 0/0/0/0/0/0/0/0/0 Lore% 1 Gallery% 2 Achievement% 3 Wizard Run 0 Options --------- Layout 1 ASCII 0 Keyboard 0 Movement Arrows Keybinds 0 Fullscreen 2 Font 24/Proggy Map View 50x35 Zoom Use 0% Tactical HUD 1 Map Filters NONE Filters NONE Steam 1 RUN: 99426917-216a-4bb3-9871-fd43e07018fd